fUST/lending_fUST_20260107
["ID","MTS","AMOUNT","RATE_DAILY","PERIOD"]
[400599510,1767739806504,308.73,9.374e-05,2]
[400599511,1767739807091,352.83,9.721e-05,2]
[400599512,1767739807367,396.94,0.00010068,2]
[400599513,1767739807826,441.04,0.00010415,2]
[400599515,1767739813939,500.0,0.00013273,2]
[400599535,1767739832301,-268.00542682,0.00013698,2]
[400599537,1767739832311,-9439.07316149,0.00013699,2]
[400599543,1767739832360,-1423.00869472,0.00013699,2]
[400599612,1767739838490,-500.0,0.00013699,2]
[400599614,1767739838500,-500.0,0.00013699,2]
[400599616,1767739838510,-500.0,0.00013699,2]
[400599618,1767739838520,-500.0,0.00013699,2]
[400599620,1767739838530,-500.81877837,0.00013699,2]
[400599622,1767739838540,-500.54517436,0.00013699,2]
[400599624,1767739838550,-443.89072638,0.00013699,2]
[400599626,1767739838559,-500.0,0.00013699,2]
[400599628,1767739838568,-501.0386878,0.00013699,2]
[400599630,1767739838578,-500.0,0.00013699,2]
[400599631,1767739838588,-422.26103186,0.00013699,2]
[400599634,1767739838600,-77.73896814,0.00013699,2]
[400599636,1767739838610,-502.04480355,0.00013699,2]
[400599638,1767739838620,-500.0,0.00013699,2]
[400599640,1767739838630,-500.0,0.00013699,2]
[400599642,1767739838640,-500.0,0.00013699,2]
[400599644,1767739838650,-500.0,0.00013699,2]
[400599646,1767739838659,-500.0,0.00013699,2]
[400599648,1767739838669,-16203.73646215,0.00013721,2]
[400599650,1767739838681,-983796.26353785,0.00013721,2]
[400599652,1767739838695,-500.0,0.0001382,2]
[400599654,1767739838704,-500.0,0.0001382,2]
[400599656,1767739838714,-188.57535534,0.0001382,2]
[400599658,1767739838724,-579.73091719,0.0001382,2]
[400599660,1767739838734,-500.0,0.0001382,2]
[400599663,1767739838744,-500.0,0.0001382,2]
[400599664,1767739838753,-500.0,0.0001382,2]
[400599666,1767739838763,-500.0,0.0001382,2]
[400599668,1767739838772,-500.0,0.0001382,2]
[400599670,1767739838782,-500.0,0.00013821,2]
[400599672,1767739838791,-1000.0,0.00013821,2]
[400599675,1767739838804,-1002.25371869,0.00013821,2]
[400599677,1767739838814,-1000.0,0.00013821,2]
[400599679,1767739838823,-1000.0,0.00013821,2]
[400599681,1767739838833,-500.0,0.00013821,2]
[400599683,1767739838843,-500.0,0.00013821,2]
[400599685,1767739838852,-500.0,0.00013821,2]
[400599687,1767739838861,-1098.44792801,0.00013821,2]
[400599689,1767739838871,-1000.0,0.00013821,2]
[400599691,1767739838881,-1000.0,0.00013821,2]
[400599693,1767739838890,-8683.0,0.00013835,2]
[400599695,1767739838900,-500.0,0.00013836,2]
[400599697,1767739838910,-14629.77162275,0.0001386,2]
[400599699,1767739838919,-258.921,0.00013871,2]
[400599701,1767739838928,-184.7045463,0.00013871,2]
[400599703,1767739838938,-8683.0,0.00013972,2]
[400599705,1767739838948,-300.0,0.00013972,2]
[400599707,1767739838958,-300.0,0.00013972,2]
[400599709,1767739838970,-300.0,0.00013972,2]
[400599711,1767739838980,-300.0,0.00013972,2]
[400599714,1767739838990,-300.0,0.00013972,2]
[400599716,1767739838999,-300.0,0.00013972,2]
[400599717,1767739839011,-300.0,0.00013972,2]
[400599719,1767739839021,-300.0,0.00013972,2]
[400599722,1767739839030,-300.0,0.00013972,2]
[400599723,1767739839041,-300.0,0.00013972,2]
[400599726,1767739839051,-300.0,0.00013972,2]
[400599728,1767739839060,-300.0,0.00013972,2]
[400599730,1767739839070,-300.0,0.00013972,2]
[400599732,1767739839079,-300.0,0.00013972,2]
[400599734,1767739839088,-300.0,0.00013972,2]
[400599736,1767739839097,-163.60914411,0.00013973,2]
[400599738,1767739839107,-500.0,0.00013973,2]
[400599739,1767739839116,-8683.0,0.00014109,2]
[400599741,1767739839125,-155.4754909,0.0001411,2]
[400599743,1767739839135,-500.0,0.0001411,2]
[400599746,1767739839149,-953.70091849,0.00014148,2]
[400599748,1767739839158,-500.0,0.00014174,2]
[400599750,1767739839167,-264.05252587,0.00014175,2]
[400599752,1767739839179,-8683.0,0.00014246,2]
[400599754,1767739839189,-500.0,0.00014247,2]
[400599756,1767739839199,-1000.0,0.00014247,2]
[400599758,1767739839208,-1000.0,0.00014247,2]
[400599760,1767739839217,-1000.0,0.00014247,2]
[400599762,1767739839227,-1033.7772006,0.00014247,2]
[400599764,1767739839236,-1000.0,0.00014247,2]
[400599766,1767739839246,-602.91356518,0.00014247,2]
[400599768,1767739839255,-504.33287174,0.00014247,2]
[400599770,1767739839265,-200.0,0.00014247,2]
[400599772,1767739839274,-500.0,0.00014247,2]
[400599774,1767739839283,-305.34976353,0.00014367,2]
[400599776,1767739839292,-500.0,0.00014367,2]
[400599778,1767739839302,-512.70889643,0.00014367,2]
[400599780,1767739839311,-512.70889643,0.00014367,2]
[400599782,1767739839320,-444.44750395,0.00014367,2]
[400599784,1767739839329,-512.70889643,0.00014367,2]
[400599786,1767739839338,-512.70889643,0.00014367,2]
[400599788,1767739839348,-500.0,0.00014367,2]
[400599790,1767739839357,-512.70889643,0.00014367,2]
[400599792,1767739839366,-512.70889643,0.00014367,2]
[400599794,1767739839377,-512.70889643,0.00014367,2]
[400599796,1767739839387,-512.70889643,0.00014367,2]
[400599798,1767739839396,-512.70889643,0.00014367,2]
[400599800,1767739839405,-512.70889643,0.00014367,2]
[400599802,1767739839414,-512.70889643,0.00014367,2]
[400599804,1767739839423,-904.78040547,0.00014367,2]
[400599806,1767739839432,-904.78040547,0.00014367,2]
[400599808,1767739839441,-904.78040547,0.00014367,2]
[400599809,1767739839451,-904.78040547,0.00014367,2]
[400599810,1767739839460,-904.78040547,0.00014367,2]
[400599811,1767739839470,-904.78040547,0.00014367,2]
[400599812,1767739839479,-904.78040547,0.00014367,2]
[400599813,1767739839490,-904.78040547,0.00014367,2]
[400599814,1767739839499,-904.78040547,0.00014367,2]
[400599815,1767739839508,-904.78040547,0.00014367,2]
[400599816,1767739839518,-904.78040547,0.00014367,2]
[400599817,1767739839528,-538.34434125,0.00014367,2]
[400599818,1767739839537,-500.0,0.00014368,2]
[400599819,1767739839546,-500.0,0.00014368,2]
[400599820,1767739839556,-1500.0,0.00014368,2]
[400599821,1767739839567,-1507.63173447,0.00014368,2]
[400599833,1767739839720,-8683.0,0.00014383,2]
[400599835,1767739839760,-500.0,0.00014384,2]
[400599837,1767739839770,-4509.48914467,0.000144,2]
[400599839,1767739839779,-151.0,0.000145,2]
[400599841,1767739839788,-151.0,0.000145,2]
[400599843,1767739839798,-151.0,0.000145,2]
[400599845,1767739839807,-151.0,0.000145,2]
[400599847,1767739839816,-151.0,0.000145,2]
[400599849,1767739839825,-151.0,0.000145,2]
[400599851,1767739839835,-151.0,0.000145,2]
[400599853,1767739839844,-151.0,0.000145,2]
[400599856,1767739839855,-151.0,0.000145,2]
[400599858,1767739839864,-151.0,0.000145,2]
[400599860,1767739839873,-151.0,0.000145,2]
[400599862,1767739839883,-151.0,0.000145,2]
[400599864,1767739839892,-151.0,0.000145,2]
[400599866,1767739839901,-151.0,0.000145,2]
[400599868,1767739839910,-151.0,0.000145,2]
[400599870,1767739839920,-151.0,0.000145,2]
[400599872,1767739839928,-151.0,0.000145,2]
[400599874,1767739839938,-151.0,0.000145,2]
[400599876,1767739839947,-151.0,0.000145,2]
[400599878,1767739839957,-151.0,0.000145,2]
[400599880,1767739839970,-151.0,0.000145,2]
[400599882,1767739839980,-151.0,0.000145,2]
[400599884,1767739839989,-8683.0,0.0001452,2]
[400599886,1767739839998,-500.0,0.00014521,2]
[400599888,1767739840009,-600.0,0.0001453,2]
[400599890,1767739840018,-8683.0,0.00014657,2]
[400599892,1767739840027,-500.0,0.00014658,2]
[400599894,1767739840036,-500.0,0.00014669,2]
[400599896,1767739840045,-500.0,0.00014669,2]
[400599898,1767739840055,-500.0,0.00014669,2]
[400599900,1767739840064,-500.0,0.00014669,2]
[400599902,1767739840074,-184.19130512,0.00014669,2]
[400599904,1767739840083,-8683.0,0.00014794,2]
[400599906,1767739840092,-1500.0,0.00014795,2]
[400599908,1767739840102,-1500.0,0.00014795,2]
[400599911,1767739840117,-1500.0,0.00014795,2]
[400599913,1767739840131,-1500.0,0.00014795,2]
[400599915,1767739840140,-500.0,0.00014795,2]
[400599917,1767739840153,-100000.0,0.00014882,2]
[400599919,1767739840163,-2000.0,0.00014916,2]
[400599922,1767739840173,-8683.0,0.00014931,2]
[400599924,1767739840183,-558.00072349,0.00014932,2]
[400599926,1767739840193,-1000.0,0.00015,2]
[400599928,1767739840203,-420.0,0.00015011,2]
[400599930,1767739840213,-8683.0,0.00015068,2]
[400599932,1767739840223,-433.11892881,0.00015104,2]
[400599934,1767739840232,-8683.0,0.00015205,2]
[400599936,1767739840242,-8683.0,0.00015342,2]
[400599938,1767739840251,-2000.0,0.00015342,2]
[400599940,1767739840265,-2000.0,0.00015342,2]
[400599942,1767739840274,-2000.0,0.00015342,2]
[400599944,1767739840285,-2000.0,0.00015342,2]
[400599946,1767739840295,-2387.16845353,0.00015464,2]
[400599948,1767739840304,-8683.0,0.00015479,2]
[400599950,1767739840314,-8683.0,0.00015616,2]
[400599952,1767739840324,-316.24640364,0.00015698,2]
[400599955,1767739840333,-8683.0,0.00015753,2]
[400599957,1767739840343,-8683.0,0.0001589,2]
[400599959,1767739840352,-2500.0,0.0001589,2]
[400599961,1767739840361,-1518.27095848,0.0001589,2]
[400599963,1767739840371,-1500.0,0.0001589,2]
[400599965,1767739840380,-854.09851371,0.0001589,2]
[400599967,1767739840390,-14628.0,0.00015939,2]
[400599969,1767739840400,-720.0,0.00015984,2]
[400599971,1767739840410,-8683.0,0.00016027,2]
[400599973,1767739840419,-8683.0,0.00016164,2]
[400599975,1767739840429,-8683.0,0.00016301,2]
[400599977,1767739840439,-8683.0,0.00016438,2]
[400599979,1767739840448,-3000.0,0.00016438,2]
[400599982,1767739840461,-587.0,0.00016451,2]
[400599984,1767739840471,-200.0,0.00016473,2]
[400599986,1767739840481,-631.89180249,0.00016509,5]
[400599988,1767739840490,-8683.0,0.00016575,2]
[400599990,1767739840500,-500.0,0.0001661,2]
[400599992,1767739840509,-500.0,0.0001661,2]
[400599994,1767739840519,-500.0,0.0001661,2]
[400599996,1767739840528,-500.0,0.0001661,2]
[400599998,1767739840537,-500.0,0.0001661,2]
[400600000,1767739840547,-500.0,0.0001661,2]
[400600002,1767739840557,-500.0,0.0001661,2]
[400600004,1767739840567,-500.0,0.0001661,2]
[400600006,1767739840576,-500.0,0.0001661,2]
[400600008,1767739840586,-500.0,0.0001661,2]
[400600010,1767739840596,-500.0,0.0001661,2]
[400600012,1767739840606,-500.0,0.0001661,2]
[400600014,1767739840616,-500.0,0.0001661,2]
[400600016,1767739840627,-500.0,0.0001661,2]
[400600018,1767739840636,-500.0,0.0001661,2]
[400600021,1767739840646,-500.0,0.0001661,2]
[400600023,1767739840656,-511.14869574,0.0001661,2]
[400600025,1767739840666,-8683.0,0.00016712,2]
[400600027,1767739840676,-8687.87883595,0.00016849,2]
[400600029,1767739840685,-3298.06700811,0.00016986,2]
[400600031,1767739840695,-4509.48914465,0.00016993,2]
[400600033,1767739840705,-864.0,0.00017582,2]
[400600035,1767739840714,-364.48738047,0.00017698,2]
[400600037,1767739840724,-852.80186464,0.00017914,7]
[400600039,1767739840734,-543.0,0.00018028,2]
[400600041,1767739840744,-15905.50371464,0.00018082,3]
[400600043,1767739840753,-216.0,0.00018767,3]
[400600045,1767739840762,-299.5,0.00018817,2]
[400600047,1767739840772,-900.0,0.00019178,2]
[400600049,1767739840781,-1000.0,0.000193,2]
[400600051,1767739840791,-1000.0,0.000193,2]
[400600053,1767739840803,-1000.0,0.000193,2]
[400600055,1767739840812,-1000.0,0.000193,2]
[400600057,1767739840822,-1000.0,0.000193,2]
[400600060,1767739840833,-1000.0,0.000193,2]
[400600061,1767739840841,-1000.0,0.000193,2]
[400600064,1767739840852,-1000.0,0.000193,2]
[400600066,1767739840861,-1000.0,0.000193,2]
[400600068,1767739840871,-1000.0,0.000193,2]
[400600070,1767739840879,-530.254158,0.000193,2]
[400600072,1767739840888,-1091.78272481,0.00019319,10]
[400600074,1767739840898,-1000.0,0.0001934,2]
[400600076,1767739840907,-4509.48914465,0.00019585,2]
[400600078,1767739840916,-412.7283573,0.00019698,2]
[400600080,1767739840926,-2612.25,0.000197,2]
[400600082,1767739840935,-298.31,0.000197,2]
[400600084,1767739840945,-167.75,0.000197,2]
[400600086,1767739840955,-248.93,0.000197,2]
[400600088,1767739840967,-22465.31,0.000197,2]
[400600090,1767739840982,-648.93473211,0.00019726,2]
[400600092,1767739840992,-6963.0,0.0002,3]
[400600094,1767739841001,-181.04000005,0.0002,2]
[400600096,1767739841013,-210.16908342,0.0002,2]
[400600098,1767739841023,-299.5,0.00020379,2]
[400600100,1767739841032,-1346.22682512,0.00020724,13]
[400600102,1767739841042,-172.0,0.00020959,3]
[400600104,1767739841052,-1000.0,0.00021274,10]
[400600106,1767739841061,-244.0,0.00021274,10]
[400600108,1767739841071,-460.96933412,0.00021698,2]
[400600110,1767739841081,-299.5,0.00021941,2]
[400600112,1767739841090,-475.0,0.00022,7]
[400600114,1767739841099,-475.0,0.00022,7]
[400600116,1767739841110,-475.0,0.00022,7]
[400600118,1767739841119,-475.0,0.00022,7]
[400600120,1767739841129,-475.0,0.00022,7]
[400600122,1767739841138,-475.0,0.00022,7]
[400600124,1767739841148,-475.0,0.00022,7]
[400600126,1767739841158,-475.0,0.00022,7]
[400600128,1767739841168,-475.0,0.00022,7]
[400600130,1767739841179,-475.0,0.00022,7]
[400600132,1767739841191,-1614.29405075,0.00022129,15]
[400600134,1767739841201,-4509.48914465,0.00022178,2]
[400600136,1767739841211,-2846.21,0.000222,7]
[400600138,1767739841220,-475.0,0.00022251,7]
[400600140,1767739841229,-475.0,0.00022251,7]
[400600142,1767739841239,-1000.0,0.00022285,7]
[400600144,1767739841248,-1000.0,0.00022285,7]
[400600146,1767739841258,-1000.0,0.00022285,7]
[400600148,1767739841267,-1000.0,0.00022285,7]
[400600150,1767739841277,-1000.0,0.00022285,7]
[400600152,1767739841286,-1000.0,0.00022285,7]
[400600154,1767739841295,-1000.0,0.00022285,7]
[400600156,1767739841304,-1000.0,0.00022285,7]
[400600158,1767739841314,-300.0,0.00022466,2]
[400600160,1767739841323,-2344.99085773,0.00022642,2]
[400600162,1767739841332,-2344.99085773,0.00022812,2]
[400600164,1767739841343,-438.03,0.000229,2]
[400600167,1767739841352,-450.0,0.00023014,2]
[400600169,1767739841362,-2344.99085773,0.00023021,2]
[400600171,1767739841372,-175.0,0.00023151,9]
[400600173,1767739841381,-500.0,0.00023164,2]
[400600175,1767739841391,-500.0,0.00023179,2]
[400600177,1767739841400,-2000.0,0.00023195,7]
[400600179,1767739841409,-2200.0,0.00023329,2]
[400600181,1767739841418,-1000.0,0.00023401,10]
[400600183,1767739841427,-492.0,0.00023401,10]
[400600185,1767739841436,-1041.66666667,0.00023402,2]
[400600187,1767739841446,-2344.99085773,0.00023471,2]
[400600189,1767739841454,-299.5,0.00023503,2]
[400600191,1767739841463,-1894.60415986,0.00023534,18]
[400600193,1767739841473,-600.0,0.00023562,2]
[400600195,1767739841482,-500.0,0.00023614,2]
[400600196,1767739841491,-2344.99085773,0.00023687,2]
[400600198,1767739841501,-509.21031095,0.00023698,2]
[400600200,1767739841510,-2200.0,0.00023782,2]
[400600202,1767739841520,-2344.99085773,0.0002385,2]
[400600204,1767739841530,-500.0,0.00023984,2]
[400600206,1767739841540,-2000.0,0.00024035,7]
[400600207,1767739841550,-750.0,0.0002411,2]
[400600209,1767739841559,-632.0,0.00024111,2]
[400600211,1767739841569,-195.05,0.00024137,2]
[400600213,1767739841579,-632.0,0.00024142,2]
[400600215,1767739841588,-195.05,0.0002417,2]
[400600217,1767739841598,-2200.0,0.00024205,2]
[400600219,1767739841607,-2200.0,0.00024225,2]
[400600221,1767739841616,-2344.99085773,0.00024254,2]
[400600223,1767739841626,-2200.0,0.00024285,2]
[400600225,1767739841635,-632.0,0.00024289,2]
[400600227,1767739841644,-632.0,0.00024295,2]
[400600229,1767739841654,-500.0,0.00024297,2]
[400600231,1767739841664,-632.0,0.00024312,2]
[400600233,1767739841674,-632.0,0.00024353,2]
[400600235,1767739841684,-632.0,0.00024391,2]
[400600237,1767739841693,-2344.99085773,0.00024409,2]
[400600239,1767739841703,-15905.49,0.000245,3]
[400600241,1767739841713,-2200.0,0.00024612,2]
[400600243,1767739841723,-632.0,0.00024632,2]
[400600245,1767739841732,-2200.0,0.00024643,2]
[400600247,1767739841741,-900.0,0.00024658,2]
[400600249,1767739841751,-500.0,0.00024658,2]
[400600250,1767739841760,-2200.0,0.00024672,2]
[400600253,1767739841769,-500.0,0.00024703,2]
[400600254,1767739841779,-2344.99085773,0.00024733,2]
[400600256,1767739841788,-632.0,0.00024752,7]
[400600259,1767739841798,-4509.48914465,0.0002477,2]
[400600261,1767739841807,-9679.57479427,0.0002477,2]
[400600263,1767739841817,-500.0,0.00024795,2]
[400600264,1767739841827,-22465.31,0.000248,2]
[400600266,1767739841836,-257644.98719,0.000248,2]
[400600268,1767739841845,-632.0,0.0002487,2]
[400600270,1767739841854,-500.0,0.00024875,2]
[400600273,1767739841864,-2000.0,0.00024875,7]
[400600274,1767739841873,-151.0,0.000249,7]
[400600276,1767739841883,-151.0,0.000249,7]
[400600278,1767739841892,-151.0,0.000249,7]
[400600280,1767739841901,-151.0,0.000249,7]
[400600282,1767739841911,-151.0,0.000249,7]
[400600284,1767739841920,-151.0,0.000249,7]
[400600286,1767739841929,-151.0,0.000249,7]
[400600288,1767739841939,-157.984935,0.000249,7]
[400600290,1767739841948,-251.543708,0.000249,7]
[400600292,1767739841957,-157.984935,0.000249,7]
[400600294,1767739841969,-251.543708,0.000249,7]
[400600296,1767739841978,-251.543708,0.000249,7]
[400600298,1767739841987,-251.543708,0.000249,7]
[400600300,1767739841996,-157.984935,0.000249,7]
[400600301,1767739842007,-157.984935,0.000249,7]
[400600303,1767739842016,-151.0,0.000249,7]
[400600305,1767739842025,-151.0,0.000249,7]
[400600307,1767739842034,-151.0,0.000249,7]
[400600308,1767739842044,-151.0,0.000249,7]
[400600309,1767739842054,-151.0,0.000249,7]
[400600310,1767739842063,-151.0,0.000249,7]
[400600311,1767739842072,-257.45092,0.000249,7]
[400600312,1767739842082,-151.0,0.000249,7]
[400600313,1767739842091,-151.0,0.000249,7]
[400600314,1767739842101,-151.0,0.000249,7]
[400600315,1767739842110,-151.0,0.000249,7]
[400600316,1767739842119,-151.0,0.000249,7]
[400600317,1767739842128,-152.500089,0.000249,7]
[400600318,1767739842138,-151.0,0.000249,7]
[400600319,1767739842147,-151.0,0.000249,7]
[400600320,1767739842156,-151.0,0.000249,7]
[400600321,1767739842166,-151.0,0.000249,7]
[400600322,1767739842175,-151.0,0.000249,7]
[400600323,1767739842184,-166.442051,0.000249,7]
[400600324,1767739842194,-151.0,0.000249,7]
[400600325,1767739842203,-166.442051,0.000249,7]
[400600326,1767739842212,-166.442051,0.000249,7]
[400600327,1767739842222,-166.442051,0.000249,7]
[400600328,1767739842232,-151.0,0.000249,7]
[400600329,1767739842241,-158.624878,0.000249,7]
[400600330,1767739842251,-191.004961,0.000249,7]
[400600331,1767739842260,-151.0,0.000249,7]
[400600332,1767739842269,-151.0,0.000249,7]
[400600333,1767739842279,-221.765393,0.000249,7]
[400600334,1767739842288,-151.0,0.000249,7]
[400600335,1767739842298,-151.0,0.000249,7]
[400600336,1767739842307,-151.0,0.000249,7]
[400600337,1767739842317,-164.05427,0.000249,7]
[400600339,1767739842326,-500.0,0.000249,7]
[400600340,1767739842336,-500.0,0.000249,7]
[400600342,1767739842345,-500.0,0.000249,7]
[400600344,1767739842355,-500.0,0.000249,7]
[400600346,1767739842364,-151.0,0.000249,7]
[400600348,1767739842373,-182.954816,0.000249,7]
[400600350,1767739842383,-631081.21536,0.000249,2]
[400600352,1767739842393,-153.789809,0.000249,7]
[400600354,1767739842402,-176.133271,0.000249,7]
[400600356,1767739842412,-746.767727,0.000249,7]
[400600358,1767739842422,-746.767727,0.000249,7]
[400600360,1767739842432,-746.767727,0.000249,7]
[400600362,1767739842441,-746.767727,0.000249,7]
[400600364,1767739842450,-151.0,0.000249,7]
[400600366,1767739842459,-5000.0,0.000249,7]
[400600368,1767739842468,-151.893811,0.000249,7]
[400600370,1767739842477,-5000.0,0.000249,7]
[400600372,1767739842486,-5000.0,0.000249,7]
[400600374,1767739842496,-5000.0,0.000249,7]
[400600375,1767739842506,-176.786529,0.000249,7]
[400600378,1767739842516,-176.786529,0.000249,7]
[400600380,1767739842526,-176.786529,0.000249,7]
[400600382,1767739842535,-176.786529,0.000249,7]
[400600384,1767739842545,-151.0,0.000249,7]
[400600386,1767739842555,-156.236454,0.000249,7]
[400600388,1767739842564,-151.0,0.000249,7]
[400600390,1767739842574,-151.0,0.000249,7]
[400600392,1767739842583,-2200.0,0.00024921,2]
[400600393,1767739842593,-500.0,0.0002493,2]
[400600396,1767739842603,-500.0,0.00024932,2]
[400600409,1767739842717,-2186.07686482,0.00024939,21]
[400600412,1767739842742,-632.0,0.00024977,2]
[400600414,1767739842751,-632.0,0.00024984,2]
[400600416,1767739842760,-869.88,0.00025,20]
[400600418,1767739842770,-2344.99085773,0.00025018,2]
[400600420,1767739842778,-632.0,0.00025026,2]
[400600422,1767739842787,-632.0,0.00025047,2]
[400600424,1767739842796,-299.5,0.00025065,2]
[400600425,1767739842805,-632.0,0.00025068,7]
[400600428,1767739842815,-500.0,0.00025069,2]
[400600430,1767739842825,-2200.0,0.00025073,7]
[400600431,1767739842834,-632.0,0.00025123,2]
[400600433,1767739842844,-250.0,0.00025205,2]
[400600436,1767739842853,-880.39814706,0.00025205,2]
[400600438,1767739842863,-500.0,0.00025206,2]
[400600440,1767739842873,-2344.99085773,0.00025274,2]
[400600442,1767739842882,-2612.25,0.000253,14]
[400600444,1767739842891,-298.31,0.000253,7]
[400600446,1767739842900,-248.93,0.000253,7]
[400600448,1767739842909,-177.0,0.00025342,16]
[400600449,1767739842918,-500.0,0.00025343,2]
[400600452,1767739842927,-2200.0,0.00025357,7]
[400600454,1767739842936,-2200.0,0.00025376,7]
[400600456,1767739842945,-3233.8122455,0.00025448,2]
[400600458,1767739842954,-500.0,0.0002548,2]
[400600460,1767739842966,-632.0,0.00025516,2]
[400600461,1767739842976,-2200.0,0.00025567,7]
[400600463,1767739842985,-500.0,0.00025617,2]
[400600465,1767739842994,-500.0,0.00025646,7]
[400600467,1767739843003,-2344.99085783,0.00025664,2]
[400600469,1767739843013,-557.45128778,0.00025698,2]
[400600471,1767739843026,-2000.0,0.00025715,7]
[400600473,1767739843035,-632.0,0.00025719,2]
[400600475,1767739843044,-632.0,0.00025729,2]
[400600477,1767739843054,-1564.1243201,0.00025738,2]
[400600479,1767739843063,-1000.0,0.00025742,10]
[400600481,1767739843073,-791.0,0.00025742,10]
[400600483,1767739843083,-350.0,0.00025753,2]
[400600485,1767739843092,-500.0,0.00025754,2]
[400600486,1767739843101,-504.0,0.00025891,2]
[400600489,1767739843111,-632.0,0.00025896,2]
[400600490,1767739843120,-2846.21,0.000259,7]
[400600492,1767739843130,-2200.0,0.00025998,7]
[400600494,1767739843139,-1162.91563994,0.00026,2]
[400600496,1767739843149,-161.0,0.00026,5]
[400600498,1767739843158,-1000.0,0.00026,2]
[400600500,1767739843167,-1000.0,0.00026,2]
[400600502,1767739843176,-1000.0,0.00026,2]
[400600504,1767739843185,-1000.0,0.00026,2]
[400600506,1767739843194,-1000.0,0.00026,2]
[400600508,1767739843203,-1000.0,0.00026,2]
[400600510,1767739843212,-1000.0,0.00026,2]
[400600512,1767739843222,-1000.0,0.00026,2]
[400600514,1767739843231,-1000.0,0.00026,2]
[400600516,1767739843242,-1000.0,0.00026,2]
[400600518,1767739843251,-1000.0,0.00026,2]
[400600520,1767739843260,-1000.0,0.00026,2]
[400600522,1767739843269,-1000.0,0.00026,2]
[400600524,1767739843279,-1000.0,0.00026,2]
[400600526,1767739843287,-574.71139926,0.00026,2]
[400600528,1767739843297,-151.0,0.00026,2]
[400600530,1767739843306,-2200.0,0.00026091,7]
[400600532,1767739843315,-632.0,0.00026109,2]
[400600534,1767739843325,-2200.0,0.00026129,7]
[400600536,1767739843334,-9679.57479422,0.00026158,2]
[400600538,1767739843344,-194.54818009,0.0002616,2]
[400600540,1767739843353,-632.0,0.0002617,7]
[400600542,1767739843362,-632.0,0.00026264,7]
[400600544,1767739843372,-2200.0,0.000263,7]
[400600546,1767739843381,-450.0,0.00026301,2]
[400600548,1767739843390,-2487.83964167,0.00026344,23]
[400600550,1767739843399,-632.0,0.00026492,2]
[400600552,1767739843408,-632.0,0.00026498,7]
[400600554,1767739843417,-438.03,0.000265,2]
[400600556,1767739843427,-500.0,0.00026534,7]
[400600557,1767739843436,-200.0,0.0002654,14]
[400600558,1767739843445,-2200.0,0.0002655,7]
[400600560,1767739843455,-2000.0,0.00026556,7]
[400600561,1767739843464,-188.11386458,0.00026587,2]
[400600563,1767739843474,-259.50283474,0.00026599,2]
[400600564,1767739843483,-299.5,0.00026627,2]
[400600566,1767739843492,-500.0,0.00026687,7]
[400600567,1767739843501,-22465.31,0.000267,2]
[400600569,1767739843511,-15905.49,0.000267,3]
[400600571,1767739843520,-53813.93792126,0.00026778,14]